[Event "African Championship (W)"]
[Site "followchess.com"]
[Date "2021.05.27"]
[Round "9"]
[White "Moaataz, Ayah"]
[Black "February, Jesse Nikki"]
[Result "1/2-1/2"]
[WhiteElo "2028"]
[BlackElo "1824"]
[ECO "A15"]
[WhiteFed "EGY"]
[BlackFed "RSA"]
[FCGameId "1817044378"]
[WhiteFideId "10615873"]
[BlackFideId "14312336"]
[TimeControl "7200+30"]

1. c4 {[%clk 1:29:39]} Nf6 {[%clk 1:30:31]} 2. g3 {[%clk 1:30:03]} c6 
{[%clk 1:30:28]} 3. Bg2 {[%clk 1:30:20]} d5 {[%clk 1:30:42]} 4. Nf3 
{[%clk 1:30:40]} g6 {[%clk 1:30:28]} 5. O-O {[%clk 1:30:39]} Bg7 
{[%clk 1:30:16]} 6. d3 {[%clk 1:29:29]} dxc4 {[%clk 1:29:52]} 7. dxc4 
{[%clk 1:29:49]} Qxd1 {[%clk 1:29:59]} 8. Rxd1 {[%clk 1:30:15]} O-O 
{[%clk 1:29:48]} 9. Nc3 {[%clk 1:30:25]} Be6 {[%clk 1:29:06]} 10. c5 
{[%clk 1:26:35]} Na6 {[%clk 1:25:59]} 11. Be3 {[%clk 1:18:05]} Nd5 
{[%clk 1:21:50]} 12. Bd4 {[%clk 1:08:50]} Bxd4 {[%clk 1:18:29]} 13. Nxd4 
{[%clk 1:08:57]} Nxc3 {[%clk 1:18:33]} 14. bxc3 {[%clk 1:08:54]} Nxc5 
{[%clk 1:18:27]} 15. Nxe6 {[%clk 1:08:11]} fxe6 {[%clk 1:18:40]} 16. Rd4 
{[%clk 1:07:13]} Rad8 {[%clk 1:16:31]} 17. Rb1 {[%clk 1:01:30]} Rd6 
{[%clk 1:16:09]} 18. Rc4 {[%clk 1:00:06]} b6 {[%clk 1:16:01]} 19. Bf3 
{[%clk 0:57:51]} Rfd8 {[%clk 1:14:19]} 20. Kg2 {[%clk 0:51:10]} Rd2 
{[%clk 1:08:26]} 21. Ra1 {[%clk 0:47:14]} e5 {[%clk 1:02:20]} 22. a4 
{[%clk 0:46:51]} e4 {[%clk 1:00:28]} 23. Bxe4 {[%clk 0:46:48]} Rxe2 
{[%clk 1:00:11]} 24. Bxc6 {[%clk 0:44:29]} Rdd2 {[%clk 0:59:38]} 25. Rf1 
{[%clk 0:44:29]} Nd3 {[%clk 0:53:26]} 26. Bb5 {[%clk 0:37:19]} Rxf2+ 
{[%clk 0:51:18]} 27. Rxf2 {[%clk 0:37:43]} Nxf2 {[%clk 0:51:17]} 28. Rc8+ 
{[%clk 0:35:16]} Kg7 {[%clk 0:46:16]} 29. Kf3 {[%clk 0:33:08]} Nd1 
{[%clk 0:44:28]} 30. Rc7 {[%clk 0:31:33]} Kf6 {[%clk 0:42:58]} 31. Be2 
{[%clk 0:29:23]} a5 {[%clk 0:39:02]} 32. Rc6+ {[%clk 0:27:37]} Kf5 
{[%clk 0:36:05]} 33. h4 {[%clk 0:25:34]} h5 {[%clk 0:32:53]} 34. Rxb6 
{[%clk 0:21:53]} Nxc3 {[%clk 0:32:48]} 35. Ba6 {[%clk 0:14:21]} Rd6 
{[%clk 0:29:49]} 36. Bc8+ {[%clk 0:14:10]} Kf6 {[%clk 0:28:58]} 37. Rb3 
{[%clk 0:13:56]} Nxa4 {[%clk 0:26:16]} 38. Rb5 {[%clk 0:10:26]} Nb6 
{[%clk 0:24:20]} 39. Bb7 {[%clk 0:10:50]} a4 {[%clk 0:22:57]} 40. Ra5 
{[%clk 0:40:03]} e5 {[%clk 0:45:53]} 41. Be4 {[%clk 0:40:04]} Nc4 
{[%clk 0:45:08]} 42. Rxa4 {[%clk 0:40:18]} Nd2+ {[%clk 0:45:21]} 43. Ke3 
{[%clk 0:40:03]} Nxe4 {[%clk 0:45:45]} 44. Kxe4 {[%clk 0:38:48]} Rd4+ 
{[%clk 0:44:50]} 45. Rxd4 {[%clk 0:39:10]} exd4 {[%clk 0:45:15]} 46. Kxd4 
{[%clk 0:39:38]} Kf5 {[%clk 0:45:28]} 47. Ke3 {[%clk 0:39:59]} Kg4 
{[%clk 0:45:25]} 48. Kf2 {[%clk 0:40:22]} Kh3 {[%clk 0:45:16]} 49. Kf3 
{[%clk 0:40:26]} Kh2 {[%clk 0:45:21]} 50. Kf2 {[%clk 0:39:23]} Kh3 
{[%clk 0:45:43]} 1/2-1/2

[Event "African Championship (W)"]
[Site "followchess.com"]
[Date "2021.05.27"]
[Round "9"]
[White "Nassr, Lina"]
[Black "Marape, Naledi"]
[Result "1/2-1/2"]
[WhiteElo "1960"]
[BlackElo "1717"]
[ECO "D05"]
[WhiteFed "ALG"]
[BlackFed "BOT"]
[FCGameId "-1790294714"]
[WhiteFideId "7908075"]
[BlackFideId "11310880"]
[TimeControl "7200+30"]

1. d4 {[%clk 1:30:52]} d5 {[%clk 1:30:55]} 2. Nf3 {[%clk 1:31:15]} Nf6 
{[%clk 1:31:20]} 3. e3 {[%clk 1:31:36]} e6 {[%clk 1:31:47]} 4. Bd3 
{[%clk 1:32:00]} c5 {[%clk 1:32:12]} 5. b3 {[%clk 1:32:08]} Nc6 {[%clk 1:32:36]} 
6. Bb2 {[%clk 1:31:34]} Bd6 {[%clk 1:32:52]} 7. dxc5 {[%clk 1:31:58]} Bxc5 
{[%clk 1:33:15]} 8. O-O {[%clk 1:32:05]} Qc7 {[%clk 1:33:18]} 9. Nbd2 
{[%clk 1:28:41]} e5 {[%clk 1:33:17]} 10. e4 {[%clk 1:17:02]} d4 {[%clk 1:33:20]} 
11. c3 {[%clk 1:14:23]} Bg4 {[%clk 1:18:30]} 12. Qc2 {[%clk 1:08:26]} dxc3 
{[%clk 1:07:34]} 13. Bxc3 {[%clk 1:03:50]} O-O {[%clk 1:07:19]} 14. b4 
{[%clk 0:59:56]} Bd6 {[%clk 1:06:35]} 15. Qb2 {[%clk 0:55:57]} Rfd8 
{[%clk 0:57:37]} 16. b5 {[%clk 0:50:26]} Nd4 {[%clk 0:53:13]} 17. Bxd4 
{[%clk 0:39:55]} exd4 {[%clk 0:52:30]} 18. h3 {[%clk 0:37:17]} Bxf3 
{[%clk 0:50:32]} 19. Nxf3 {[%clk 0:37:36]} Bf4 {[%clk 0:48:08]} 20. g3 
{[%clk 0:34:30]} Bh6 {[%clk 0:41:06]} 21. Rad1 {[%clk 0:31:22]} Qc3 
{[%clk 0:34:30]} 22. Qe2 {[%clk 0:26:08]} Nd7 {[%clk 0:28:49]} 23. Nh2 
{[%clk 0:23:25]} Nc5 {[%clk 0:22:10]} 24. Ng4 {[%clk 0:21:45]} Bg5 
{[%clk 0:22:09]} 25. f4 {[%clk 0:19:16]} Be7 {[%clk 0:22:20]} 26. Ne5 
{[%clk 0:18:26]} Nxd3 {[%clk 0:21:31]} 27. Rxd3 {[%clk 0:18:25]} Qc5 
{[%clk 0:21:40]} 28. Qb2 {[%clk 0:16:43]} Qb6 {[%clk 0:11:26]} 29. Kg2 
{[%clk 0:12:53]} Rac8 {[%clk 0:09:44]} 30. Rfd1 {[%clk 0:09:54]} Bc5 
{[%clk 0:07:01]} 31. a4 {[%clk 0:08:53]} Qe6 {[%clk 0:06:50]} 32. Re1 
{[%clk 0:02:13]} f6 {[%clk 0:06:05]} 33. Nf3 {[%clk 0:02:10]} Qc4 
{[%clk 0:06:20]} 34. Qb3 {[%clk 0:00:48]} Qxb3 {[%clk 0:06:16]} 35. Rxb3 
{[%clk 0:01:17]} Bb6 {[%clk 0:04:31]} 36. Rd3 {[%clk 0:00:57]} 1/2-1/2

[Event "African Championship (W)"]
[Site "followchess.com"]
[Date "2021.05.27"]
[Round "9"]
[White "Charinda, Kudzanayi"]
[Black "Wafa, Shahenda"]
[Result "1/2-1/2"]
[WhiteElo "1702"]
[BlackElo "2145"]
[ECO "B34"]
[WhiteFed "ZIM"]
[BlackFed "EGY"]
[FCGameId "-319263269"]
[WhiteFideId "11000538"]
[BlackFideId "10609962"]
[TimeControl "7200+30"]

1. e4 {[%clk 1:30:25]} c5 {[%clk 1:29:39]} 2. Nf3 {[%clk 1:29:54]} Nc6 
{[%clk 1:30:02]} 3. d4 {[%clk 1:29:45]} cxd4 {[%clk 1:30:24]} 4. Nxd4 
{[%clk 1:30:11]} g6 {[%clk 1:30:46]} 5. Be3 {[%clk 1:26:48]} Bg7 
{[%clk 1:31:07]} 6. Nc3 {[%clk 1:26:57]} Nf6 {[%clk 1:31:21]} 7. Be2 
{[%clk 1:25:34]} O-O {[%clk 1:31:20]} 8. Qd2 {[%clk 1:24:45]} d5 
{[%clk 1:30:16]} 9. Nxc6 {[%clk 1:21:38]} bxc6 {[%clk 1:30:38]} 10. exd5 
{[%clk 1:20:20]} cxd5 {[%clk 1:30:06]} 11. O-O {[%clk 1:19:49]} e6 
{[%clk 1:18:01]} 12. f4 {[%clk 1:19:40]} Bd7 {[%clk 1:07:54]} 13. Rab1 
{[%clk 1:18:57]} Bc6 {[%clk 1:06:27]} 14. Bf3 {[%clk 1:18:06]} Qc7 
{[%clk 1:05:46]} 15. Ne2 {[%clk 1:16:33]} Ne4 {[%clk 0:51:37]} 16. Bxe4 
{[%clk 1:14:57]} dxe4 {[%clk 0:52:02]} 17. Nd4 {[%clk 1:11:04]} Rfd8 
{[%clk 0:48:46]} 18. Qc3 {[%clk 1:05:25]} Rac8 {[%clk 0:48:43]} 19. Rbd1 
{[%clk 0:56:06]} Bd5 {[%clk 0:45:05]} 20. Qxc7 {[%clk 0:48:52]} Rxc7 
{[%clk 0:45:32]} 21. c3 {[%clk 0:48:53]} Bxd4 {[%clk 0:41:51]} 22. Rxd4 
{[%clk 0:46:44]} Rb8 {[%clk 0:41:18]} 23. Bc1 {[%clk 0:43:24]} f5 
{[%clk 0:39:30]} 24. a3 {[%clk 0:42:29]} Kf7 {[%clk 0:36:18]} 25. Rfd1 
{[%clk 0:41:54]} Ke7 {[%clk 0:35:30]} 26. Kf2 {[%clk 0:41:38]} Bc4 
{[%clk 0:34:58]} 27. Ke3 {[%clk 0:36:49]} Bd3 {[%clk 0:35:11]} 28. h4 
{[%clk 0:35:59]} h6 {[%clk 0:33:17]} 29. g3 {[%clk 0:35:18]} Rc5 
{[%clk 0:22:45]} 30. Rd2 {[%clk 0:33:30]} e5 {[%clk 0:17:21]} 31. fxe5 
{[%clk 0:31:13]} Rxe5 {[%clk 0:17:42]} 32. b4 {[%clk 0:30:49]} Rc8 
{[%clk 0:17:05]} 33. Bb2 {[%clk 0:30:55]} Re6 {[%clk 0:16:52]} 34. Rf2 
{[%clk 0:28:41]} Rd6 {[%clk 0:15:57]} 35. Rxd6 {[%clk 0:28:16]} Kxd6 
{[%clk 0:16:21]} 36. Rd2 {[%clk 0:26:51]} Ke6 {[%clk 0:15:49]} 37. Rf2 
{[%clk 0:25:14]} Rg8 {[%clk 0:14:54]} 38. Bc1 {[%clk 0:22:55]} h5 
{[%clk 0:12:26]} 39. Kf4 {[%clk 0:21:17]} Rc8 {[%clk 0:12:49]} 40. Bd2 
{[%clk 0:51:03]} Kd5 {[%clk 0:42:59]} 41. a4 {[%clk 0:50:43]} Kc4 
{[%clk 0:42:33]} 42. a5 {[%clk 0:49:39]} a6 {[%clk 0:39:35]} 43. Ke3 
{[%clk 0:47:46]} Rd8 {[%clk 0:39:51]} 44. Be1 {[%clk 0:46:36]} Kb3 
{[%clk 0:40:08]} 45. Rg2 {[%clk 0:45:15]} Kc4 {[%clk 0:38:29]} 46. Rf2 
{[%clk 0:45:04]} Kd5 {[%clk 0:38:23]} 47. Bd2 {[%clk 0:41:59]} Ke5 
{[%clk 0:38:18]} 48. Bc1 {[%clk 0:41:39]} Rc8 {[%clk 0:38:14]} 49. Bd2 
{[%clk 0:41:28]} Bc4 {[%clk 0:35:05]} 50. Be1 {[%clk 0:41:15]} Rg8 
{[%clk 0:33:53]} 51. Rd2 {[%clk 0:39:17]} Bd3 {[%clk 0:32:38]} 52. Rh2 
{[%clk 0:37:26]} Kf6 {[%clk 0:32:41]} 53. Kf4 {[%clk 0:36:00]} Re8 
{[%clk 0:32:37]} 54. Bf2 {[%clk 0:34:47]} Ke6 {[%clk 0:31:59]} 55. Bd4 
{[%clk 0:34:54]} Kd5 {[%clk 0:32:21]} 56. Ke3 {[%clk 0:34:22]} Rg8 
{[%clk 0:32:35]} 57. Kf4 {[%clk 0:34:16]} Kc4 {[%clk 0:32:20]} 58. Rf2 
{[%clk 0:33:28]} Bb1 {[%clk 0:32:17]} 59. Rb2 {[%clk 0:33:28]} Bd3 
{[%clk 0:32:24]} 60. Rf2 {[%clk 0:33:51]} 1/2-1/2

[Event "African Championship (W)"]
[Site "followchess.com"]
[Date "2021.05.27"]
[Round "9"]
[White "Mwango , Lorita"]
[Black "Shriyan santosh Priyasha"]
[Result "1-0"]
[WhiteElo "1912"]
[BlackElo "1285"]
[ECO "A40"]
[WhiteFed "ZAM"]
[BlackFed "MAW"]
[FCGameId "882231151"]
[WhiteFideId "8700478"]
[BlackFideId "20505353"]
[TimeControl "7200+30"]

1. d4 {[%clk 0:00:00]} g6 {[%clk 1:30:47]} 2. Nf3 {[%clk 1:31:12]} Bg7 
{[%clk 1:31:06]} 3. e3 {[%clk 1:31:17]} Nf6 {[%clk 1:31:25]} 4. Be2 
{[%clk 1:31:25]} O-O {[%clk 1:31:37]} 5. O-O {[%clk 1:31:52]} d6 
{[%clk 1:31:46]} 6. b3 {[%clk 1:31:55]} Nbd7 {[%clk 1:31:58]} 7. Bb2 
{[%clk 1:32:17]} b6 {[%clk 1:31:27]} 8. c4 {[%clk 1:32:35]} Bb7 {[%clk 1:30:51]} 
9. Nbd2 {[%clk 1:32:31]} Re8 {[%clk 1:30:46]} 10. Qc2 {[%clk 1:31:54]} e5 
{[%clk 1:29:52]} 11. dxe5 {[%clk 1:27:53]} dxe5 {[%clk 1:29:28]} 12. Rad1 
{[%clk 1:27:52]} Qe7 {[%clk 1:29:08]} 13. Nb1 {[%clk 1:25:45]} e4 
{[%clk 1:27:46]} 14. Nd4 {[%clk 1:25:31]} a6 {[%clk 1:23:15]} 15. Qc1 
{[%clk 1:25:13]} h5 {[%clk 1:22:32]} 16. Nc3 {[%clk 1:24:33]} Nf8 
{[%clk 1:20:26]} 17. a3 {[%clk 1:22:14]} N8h7 {[%clk 1:19:34]} 18. b4 
{[%clk 1:21:06]} h4 {[%clk 1:17:54]} 19. Nb3 {[%clk 1:20:53]} h3 
{[%clk 1:17:48]} 20. g3 {[%clk 1:20:29]} Ng5 {[%clk 1:15:21]} 21. Nd5 
{[%clk 1:16:04]} Bxd5 {[%clk 1:07:57]} 22. Bxf6 {[%clk 1:15:50]} Qxf6 
{[%clk 1:07:19]} 23. Rxd5 {[%clk 1:15:48]} Nf3+ {[%clk 1:06:18]} 24. Kh1 
{[%clk 1:15:45]} Rad8 {[%clk 0:58:10]} 25. Nd2 {[%clk 1:07:10]} Ng5 
{[%clk 0:46:18]} 26. f4 {[%clk 0:54:35]} exf3 {[%clk 0:44:02]} 27. Nxf3 
{[%clk 0:54:33]} Nxf3 {[%clk 0:33:33]} 28. Bxf3 {[%clk 0:54:06]} Qe7 
{[%clk 0:30:36]} 29. e4 {[%clk 0:53:41]} c6 {[%clk 0:28:27]} 30. Rxd8 
{[%clk 0:52:02]} Rxd8 {[%clk 0:28:39]} 31. Rd1 {[%clk 0:52:01]} Bd4 
{[%clk 0:26:25]} 32. Qc2 {[%clk 0:48:18]} Qg5 {[%clk 0:23:38]} 33. Qd2 
{[%clk 0:48:12]} Qf6 {[%clk 0:23:31]} 34. Qf4 {[%clk 0:47:36]} Qe7 
{[%clk 0:19:15]} 35. Qd2 {[%clk 0:41:31]} Qf6 {[%clk 0:19:17]} 36. Bg4 
{[%clk 0:41:00]} Rd6 {[%clk 0:15:02]} 37. Qe2 {[%clk 0:40:15]} Qe5 
{[%clk 0:14:38]} 38. Bxh3 {[%clk 0:40:30]} Rf6 {[%clk 0:14:52]} 39. Rf1 
{[%clk 0:40:23]} Rxf1+ {[%clk 0:13:51]} 40. Bxf1 {[%clk 1:10:44]} Bb2 
{[%clk 0:42:21]} 41. a4 {[%clk 1:10:33]} Ba3 {[%clk 0:41:42]} 42. b5 
{[%clk 1:10:52]} cxb5 {[%clk 0:41:55]} 43. cxb5 {[%clk 1:09:35]} axb5 
{[%clk 0:42:15]} 44. axb5 {[%clk 1:09:57]} Bc5 {[%clk 0:42:00]} 45. Kg2 
{[%clk 1:09:01]} Kg7 {[%clk 0:39:40]} 46. Qf3 {[%clk 1:06:25]} Qb2+ 
{[%clk 0:38:42]} 47. Be2 {[%clk 1:05:38]} Qe5 {[%clk 0:39:01]} 48. Bc4 
{[%clk 1:05:31]} f6 {[%clk 0:36:25]} 49. Qe2 {[%clk 1:02:21]} g5 
{[%clk 0:34:54]} 50. Kf3 {[%clk 0:56:36]} Qc3+ {[%clk 0:33:49]} 51. Kg4 
{[%clk 0:53:34]} Qe5 {[%clk 0:32:45]} 52. Qf3 {[%clk 0:51:30]} Qd4 
{[%clk 0:31:59]} 53. Bd5 {[%clk 0:50:42]} Qg1 {[%clk 0:30:28]} 54. e5 
{[%clk 0:44:08]} Qd4+ {[%clk 0:29:48]} 55. Qe4 {[%clk 0:44:29]} Qd1+ 
{[%clk 0:27:38]} 56. Kf5 {[%clk 0:42:48]} Qf1+ {[%clk 0:26:47]} 57. Ke6 
{[%clk 0:39:38]} Qf2 {[%clk 0:25:27]} 58. Qf5 {[%clk 0:39:21]} Qxf5+ 
{[%clk 0:23:50]} 59. Kxf5 {[%clk 0:39:35]} Bd4 {[%clk 0:22:02]} 60. e6 
{[%clk 0:38:31]} Kf8 {[%clk 0:22:18]} 61. h4 {[%clk 0:38:29]} gxh4 
{[%clk 0:20:22]} 62. gxh4 {[%clk 0:38:48]} Ke7 {[%clk 0:20:19]} 63. h5 
{[%clk 0:39:06]} Be3 {[%clk 0:20:43]} 64. Kg6 {[%clk 0:39:23]} 1-0

[Event "African Championship (W)"]
[Site "followchess.com"]
[Date "2021.05.27"]
[Round "9"]
[White "Ogbiyoyo, Perpetual Eloho"]
[Black "Mongeli, Sasha"]
[Result "0-1"]
[WhiteElo "1880"]
[BlackElo "1553"]
[ECO "B12"]
[WhiteFed "NGR"]
[BlackFed "KEN"]
[FCGameId "1963918062"]
[WhiteFideId "8509050"]
[BlackFideId "10809090"]
[TimeControl "7200+30"]

1. e4 c6 {[%clk 1:30:46]} 2. d4 {[%clk 1:30:49]} d5 {[%clk 1:31:01]} 3. f3 
{[%clk 1:31:09]} dxe4 {[%clk 1:31:11]} 4. fxe4 {[%clk 1:31:23]} e5 
{[%clk 1:30:39]} 5. Nf3 {[%clk 1:31:33]} Bg4 {[%clk 1:30:41]} 6. Bc4 
{[%clk 1:31:23]} Nd7 {[%clk 1:30:30]} 7. O-O {[%clk 1:30:49]} Ngf6 
{[%clk 1:28:19]} 8. Bg5 {[%clk 1:24:01]} Bd6 {[%clk 1:27:25]} 9. Qe2 
{[%clk 1:15:43]} O-O {[%clk 1:18:08]} 10. Nbd2 {[%clk 1:15:08]} exd4 
{[%clk 1:03:26]} 11. h3 {[%clk 1:12:53]} Bxf3 {[%clk 0:55:20]} 12. Nxf3 Ne5 13. 
Bb3 {[%clk 1:06:50]} d3 {[%clk 0:48:18]} 14. cxd3 {[%clk 1:05:39]} Bc5+ 
{[%clk 0:48:13]} 15. Kh1 {[%clk 1:02:03]} Qxd3 {[%clk 0:47:40]} 16. Qxd3 Nxd3 
17. e5 {[%clk 0:54:13]} Nd5 {[%clk 0:41:56]} 18. Kh2 {[%clk 0:42:51]} Rae8 
{[%clk 0:33:19]} 19. Rad1 {[%clk 0:39:28]} Nxe5 {[%clk 0:30:50]} 20. Bxd5 cxd5 
21. Rxd5 {[%clk 0:39:18]} Nxf3+ {[%clk 0:31:02]} 22. Rxf3 b6 23. Rd7 
{[%clk 0:37:48]} f6 {[%clk 0:31:13]} 24. Bd2 {[%clk 0:36:53]} Rf7 
{[%clk 0:29:04]} 25. Rfd3 {[%clk 0:37:15]} Rxd7 {[%clk 0:28:49]} 26. Rxd7 
{[%clk 0:37:34]} Re7 {[%clk 0:29:17]} 27. Rxe7 Bxe7 28. Kg3 {[%clk 0:37:28]} Kf7 
{[%clk 0:29:19]} 29. Kf4 {[%clk 0:37:53]} Ke6 {[%clk 0:29:29]} 30. g4 
{[%clk 0:37:21]} g6 {[%clk 0:29:38]} 31. b3 {[%clk 0:35:08]} Kd5 
{[%clk 0:29:33]} 32. Be3 {[%clk 0:34:15]} Bf8 {[%clk 0:26:09]} 33. Kf3 
{[%clk 0:33:24]} Bc5 {[%clk 0:25:33]} 34. Bc1 {[%clk 0:33:10]} Ke5 
{[%clk 0:19:31]} 35. Bb2+ {[%clk 0:23:05]} Bd4 {[%clk 0:19:22]} 36. Bc1 
{[%clk 0:23:31]} Kd5 {[%clk 0:18:05]} 37. h4 {[%clk 0:21:49]} Bc3 
{[%clk 0:17:27]} 38. Be3 {[%clk 0:21:34]} Bd4 {[%clk 0:16:07]} 39. Bc1 
{[%clk 0:21:43]} b5 {[%clk 0:15:27]} 40. Bd2 {[%clk 0:19:11]} Be5 
{[%clk 0:11:56]} 41. Be3 {[%clk 0:19:10]} Bd4 {[%clk 0:11:56]} 42. Bd2 
{[%clk 0:19:20]} Bb6 {[%clk 0:08:40]} 43. Bc3 {[%clk 0:19:11]} Bd8 
{[%clk 0:08:37]} 44. h5 {[%clk 0:17:24]} a5 {[%clk 0:06:37]} 45. Bb2 
{[%clk 0:45:30]} a4 {[%clk 0:35:29]} 46. Bc3 {[%clk 0:45:06]} Be7 
{[%clk 0:34:11]} 47. Bb2 {[%clk 0:43:56]} Ke6 {[%clk 0:29:21]} 48. Ke4 
{[%clk 0:38:59]} Bd6 {[%clk 0:28:41]} 49. Bc1 {[%clk 0:36:37]} Be5 
{[%clk 0:27:40]} 50. Bd2 {[%clk 0:35:49]} gxh5 {[%clk 0:22:01]} 51. gxh5 
{[%clk 0:35:40]} f5+ {[%clk 0:21:50]} 52. Kf3 {[%clk 0:35:16]} Kd5 
{[%clk 0:20:25]} 53. Be3 {[%clk 0:34:50]} Bd4 {[%clk 0:18:42]} 54. Bd2 
{[%clk 0:33:38]} Bg7 {[%clk 0:18:19]} 55. Be3 {[%clk 0:33:17]} Ke5 
{[%clk 0:17:44]} 56. Bc1 {[%clk 0:30:45]} Bf6 {[%clk 0:17:11]} 57. Bb2+ Ke6 58. 
Bc1 {[%clk 0:28:16]} Bg7 {[%clk 0:16:32]} 59. Bd2 {[%clk 0:27:25]} Kd5 
{[%clk 0:15:41]} 60. Be3 {[%clk 0:26:40]} Bf8 {[%clk 0:15:21]} 61. Bf2 
{[%clk 0:22:07]} Bh6 {[%clk 0:14:37]} 62. Ba7 {[%clk 0:20:12]} Ke5 
{[%clk 0:14:20]} 63. Bf2 {[%clk 0:18:21]} Kf6 {[%clk 0:12:05]} 64. Bh4+ 
{[%clk 0:18:00]} Bg5 {[%clk 0:11:54]} 65. Bf2 {[%clk 0:10:39]} Kg7 
{[%clk 0:11:43]} 66. bxa4 {[%clk 0:06:47]} bxa4 {[%clk 0:11:34]} 67. Ke2 
{[%clk 0:01:59]} Kh6 {[%clk 0:11:24]} 68. Kd3 {[%clk 0:01:53]} Kxh5 
{[%clk 0:11:11]} 69. Kc4 {[%clk 0:01:53]} a3 {[%clk 0:10:56]} 70. Bc5 
{[%clk 0:01:10]} Bc1 {[%clk 0:10:50]} 71. Kd3 {[%clk 0:00:48]} Kg4 
{[%clk 0:10:33]} 72. Ke2 {[%clk 0:00:37]} Kg3 {[%clk 0:10:11]} 73. Kf1 
{[%clk 0:00:25]} Kf3 {[%clk 0:09:47]} 74. Bg1 Be3 {[%clk 0:09:32]} 75. Bh2 
{[%clk 0:00:08]} f4 {[%clk 0:09:27]} 0-1

[Event "African Championship (W)"]
[Site "followchess.com"]
[Date "2021.05.27"]
[Round "9"]
[White "Badenhorst, Chloe"]
[Black "Nakabo, Peninah"]
[Result "1/2-1/2"]
[WhiteElo "1316"]
[BlackElo "1730"]
[ECO "B12"]
[WhiteFed "RSA"]
[BlackFed "UGA"]
[FCGameId "156105272"]
[WhiteFideId "14339463"]
[BlackFideId "10004556"]
[TimeControl "7200+30"]

1. e4 {[%clk 1:30:58]} c6 {[%clk 1:30:56]} 2. d4 {[%clk 1:31:23]} d5 
{[%clk 1:31:21]} 3. e5 {[%clk 1:31:49]} Bf5 {[%clk 1:31:36]} 4. Nf3 
{[%clk 1:32:08]} e6 {[%clk 1:31:56]} 5. Be2 {[%clk 1:32:33]} Ne7 
{[%clk 1:32:07]} 6. O-O {[%clk 1:32:55]} Nd7 {[%clk 1:32:33]} 7. Nbd2 
{[%clk 1:33:17]} c5 {[%clk 1:32:57]} 8. c4 {[%clk 1:33:24]} Nc6 {[%clk 1:33:11]} 
9. cxd5 {[%clk 1:32:47]} exd5 {[%clk 1:33:30]} 10. dxc5 {[%clk 1:30:46]} Bxc5 
{[%clk 1:32:52]} 11. Nb3 {[%clk 1:30:30]} Be6 {[%clk 1:32:49]} 12. Nbd4 
{[%clk 1:24:14]} Ndxe5 {[%clk 1:31:20]} 13. Nxe5 {[%clk 1:22:20]} Nxd4 
{[%clk 1:29:56]} 14. Be3 {[%clk 1:21:08]} Nxe2+ {[%clk 1:30:00]} 15. Qxe2 
{[%clk 1:21:30]} Qb6 {[%clk 1:28:41]} 16. Bxc5 {[%clk 1:16:02]} Qxc5 
{[%clk 1:28:58]} 17. Rfe1 {[%clk 1:14:56]} O-O {[%clk 1:28:40]} 18. Nd3 
{[%clk 1:14:51]} Qb6 {[%clk 1:28:17]} 19. Nf4 {[%clk 1:14:48]} Rac8 
{[%clk 1:23:39]} 20. Rad1 {[%clk 1:13:22]} Rfd8 {[%clk 1:23:09]} 21. Nxd5 
{[%clk 1:10:15]} Qc5 {[%clk 1:19:30]} 22. b4 {[%clk 1:09:19]} Qf8 
{[%clk 1:19:45]} 23. Nf4 {[%clk 1:04:04]} Rd6 24. Rd2 Rxd2 {[%clk 1:19:33]} 25. 
Rd1 Rxd1+ 1/2-1/2

[Event "African Championship (W)"]
[Site "followchess.com"]
[Date "2021.05.26"]
[Round "8"]
[White "February, Jesse Nikki"]
[Black "Mwango , Lorita"]
[Result "1-0"]
[WhiteElo "1824"]
[BlackElo "1912"]
[ECO "B17"]
[WhiteFed "RSA"]
[BlackFed "ZAM"]
[FCGameId "1971193270"]
[WhiteFideId "14312336"]
[BlackFideId "8700478"]
[TimeControl "7200+30"]

1. e4 {[%clk 1:30:52]} c6 {[%clk 1:28:32]} 2. d4 {[%clk 1:30:40]} d5 
{[%clk 1:29:01]} 3. Nc3 {[%clk 1:30:24]} dxe4 {[%clk 1:29:18]} 4. Nxe4 
{[%clk 1:30:39]} Nd7 {[%clk 1:29:35]} 5. Nf3 {[%clk 1:29:32]} Ngf6 
{[%clk 1:29:40]} 6. Nxf6+ {[%clk 1:29:10]} Nxf6 {[%clk 1:29:58]} 7. c3 
{[%clk 1:29:20]} Bg4 {[%clk 1:29:07]} 8. h3 {[%clk 1:29:34]} Bh5 
{[%clk 1:29:25]} 9. g4 {[%clk 1:29:05]} Bg6 {[%clk 1:29:28]} 10. Ne5 
{[%clk 1:29:19]} Nd7 {[%clk 1:21:34]} 11. Nxg6 {[%clk 1:25:22]} hxg6 
{[%clk 1:21:50]} 12. Bg2 {[%clk 1:23:41]} e6 {[%clk 1:22:02]} 13. Bf4 
{[%clk 1:21:00]} Be7 {[%clk 1:20:44]} 14. Qe2 {[%clk 1:11:18]} Qa5 
{[%clk 1:20:13]} 15. O-O {[%clk 1:09:55]} O-O {[%clk 1:18:43]} 16. a4 
{[%clk 1:06:05]} Qd8 {[%clk 1:15:57]} 17. b4 {[%clk 0:56:57]} Rc8 
{[%clk 1:12:40]} 18. b5 b6 {[%clk 0:48:12]} 19. bxc6 {[%clk 0:47:13]} Nf6 
{[%clk 0:48:35]} 20. c7 {[%clk 0:47:14]} Rxc7 {[%clk 0:49:02]} 21. Bxc7 
{[%clk 0:47:35]} Qxc7 {[%clk 0:49:19]} 22. Rfc1 {[%clk 0:45:55]} Rd8 
{[%clk 0:49:28]} 23. Qb5 {[%clk 0:41:36]} Qf4 {[%clk 0:48:58]} 24. Qe5 
{[%clk 0:36:49]} Nd5 {[%clk 0:48:04]} 25. Qxf4 {[%clk 0:33:02]} Nxf4 
{[%clk 0:48:12]} 26. Kf1 {[%clk 0:33:02]} Bd6 {[%clk 0:47:37]} 27. a5 
{[%clk 0:32:07]} Bc7 {[%clk 0:48:00]} 28. axb6 {[%clk 0:31:51]} Bxb6 
{[%clk 0:48:18]} 29. Rd1 {[%clk 0:29:07]} g5 {[%clk 0:48:14]} 30. Rac1 
{[%clk 0:27:18]} g6 {[%clk 0:48:28]} 31. c4 {[%clk 0:22:29]} Bxd4 
{[%clk 0:48:43]} 32. c5 {[%clk 0:20:24]} Nxg2 {[%clk 0:48:45]} 33. Kxg2 
{[%clk 0:20:46]} e5 {[%clk 0:49:08]} 34. Kf3 {[%clk 0:18:49]} Rc8 
{[%clk 0:49:25]} 35. c6 {[%clk 0:19:02]} Kf8 {[%clk 0:49:30]} 36. Ke4 
{[%clk 0:17:43]} Ke7 {[%clk 0:49:13]} 37. Rc4 {[%clk 0:15:18]} Kd6 
{[%clk 0:48:44]} 38. Rdc1 {[%clk 0:15:33]} Rc7 {[%clk 0:48:11]} 39. f3 
{[%clk 0:15:38]} Ke6 {[%clk 0:47:16]} 40. Rb1 {[%clk 0:39:48]} f5+ 
{[%clk 1:16:18]} 41. Kd3 {[%clk 0:39:15]} Bb6 {[%clk 1:16:14]} 42. Rb2 
{[%clk 0:35:09]} Kd6 {[%clk 1:15:52]} 43. gxf5 {[%clk 0:30:56]} gxf5 
{[%clk 1:14:16]} 44. Rg2 {[%clk 0:29:30]} Rg7 {[%clk 1:14:18]} 45. h4 
{[%clk 0:29:08]} Bd8 {[%clk 1:14:19]} 46. hxg5 {[%clk 0:28:55]} Kd5 
{[%clk 1:10:31]} 47. g6 {[%clk 0:27:00]} Bc7 {[%clk 1:07:39]} 48. Rg5 
{[%clk 0:23:48]} Ke6 {[%clk 1:07:54]} 49. Rh4 {[%clk 0:21:04]} Bd8 
{[%clk 1:07:02]} 50. Rh7 {[%clk 0:21:12]} Rg8 {[%clk 1:07:27]} 51. Rg2 
{[%clk 0:20:30]} Kd6 {[%clk 1:07:27]} 52. g7 {[%clk 0:20:26]} Bf6 
{[%clk 1:07:47]} 53. Rg6 {[%clk 0:20:36]} Ke7 {[%clk 1:08:11]} 54. c7 
{[%clk 0:20:31]} Kf7 {[%clk 1:08:33]} 55. Rxf6+ {[%clk 0:20:42]} Kxf6 
{[%clk 1:08:57]} 56. Rh8 {[%clk 0:21:06]} Rxh8 1-0